[Event "Asian Amateur-ch Open 2022"]
[Site "Muscat"]
[Date "2022.10.02"]
[Round "4.1"]
[White "Bagheri, Majid"]
[Black "Junaid Sohail"]
[Result "0-1"]
[ECO "C54"]
[WhiteElo "1870"]
[BlackElo "1981"]
[Annotator "TA"]
[PlyCount "104"]
[EventDate "2022.09.29"]
[EventType "swiss"]
[SourceTitle "playchess.com"]
[Source "ChessBase"]
[SourceQuality "1"]
[TimeControl "5400+30"]

{[%evp 11,104,20,11,0,18,7,21,1,10,5,16,-64,-52,-50,-50,-46,-24,-62,-62,-62,-40,-48,-35,-42,-30,-64,-4,-46,-37,-27,-25,-32,-54,-154,-64,-276,-285,-282,-273,-261,-276,-512,-375,-370,-302,-279,-301,-274,-280,-293,-287,-283,-262,-346,-345,-345,-333,-316,-320,-320,-291,-420,-407,-403,-264,-381,-363,-386,-335,-395,-369,-353,0,-287,0,-339,-328,-508,-500,-581,-527,-483,-453,-682,-678,-681,-671,-747,-721,-731,-730,-736,-695,-670,-540]} 1. e4 {[%emt 0:00:01]} e5 {[%emt 0:02:31]} 2. Nf3 {[%emt 0:00:14]} Nc6 {[%emt 0:00:05]} 3. Bc4 {[%emt 0:00:12]} Nf6 {[%emt 0:00:03]} 4. d3 {[%emt 0:00:30]} Bc5 {[%emt 0:00:05]} 5. c3 {[%emt 0:00:21]} a6 {[%emt 0:00:04]} 6. Bb3 {[%emt 0:00:26]} Ba7 {[%emt 0:00:29]} 7. Qe2 {[%emt 0:00:34] [#] C54: Giuoco Piano: 4 c3 Nf6, main lines with 5 d4 and 5 d3.} Qe7 $146 {[%emt 0:00:29]} ({Predecessor:} 7... d6 8. h3 Be6 9. Bc2 h6 10. Nbd2 Qd7 11. Nf1 O-O-O 12. Ne3 d5 13. O-O d4 14. cxd4 exd4 {0-1 (75) Li,R (2444)-Bartel,M (2624) Chess.com INT 2015}) 8. h3 {[%emt 0:01:23]} h6 {[%emt 0:00:01]} 9. Nbd2 {[%emt 0:00:27] The position is equal.} d6 {[%emt 0:01:10]} 10. Nf1 {[%emt 0:01:16]} Be6 {[%emt 0:02:16]} 11. g4 {[%emt 0:05:40]} (11. Ng3 $11) 11... d5 {[%emt 0:01:01] Black is more active.} 12. Ng3 {[%emt 0:01:35]} dxe4 {[%emt 0:01:21]} 13. dxe4 {[%emt 0:01:09]} g6 {[%emt 0:00:19] Prevents Nf5.} (13... O-O-O {with more complications.} 14. Ba4 Qc5 15. Bb3 Qd6) 14. Be3 {[%emt 0:01:46]} Bxe3 {[%emt 0:05:23]} 15. Qxe3 {[%emt 0:00:04]} Bxb3 {[%emt 0:01:20]} 16. axb3 {[%emt 0:00:04]} h5 {[%emt 0:02:13]} 17. g5 {[%emt 0:03:52]} Nd7 {[%emt 0:00:02]} 18. h4 {[%emt 0:03:17]} Nf8 {[%emt 0:07:33]} ({Better is} 18... Qe6 $15) 19. b4 {[%emt 0:02:06]} Rd8 {[%emt 0:00:45]} 20. Ne2 {[%emt 0:05:40]} Ne6 {[%emt 0:00:03]} 21. Nd2 {[%emt 0:00:59]} O-O {[%emt 0:11:12][%cal Oe6f4]} 22. Nb3 {[%emt 0:17:13]} (22. O-O-O $1 $15) 22... b6 {[%emt 0:10:48]} (22... Nf4 $17 {And now ...Ng2+ would win.} 23. Nxf4 exf4 24. Qxf4 Nxb4 $1 25. cxb4 Qxb4+ 26. Kf1 Qxb3) 23. Rg1 {[%emt 0:06:32]} (23. O-O $1 $15) 23... Nf4 $19 {[%emt 0:06:23]} 24. Nxf4 {[%emt 0:01:42]} exf4 {[%emt 0:00:03]} 25. Qxf4 {[%emt 0:00:55]} Qe6 {[%emt 0:00:03]} 26. Nc1 {[%emt 0:03:15]} ({Of course not} 26. Nd2 Ne5 27. Qf6 Nd3+ 28. Ke2 Qd7 $19) (26. Nd4 {keeps fighting.} Nxd4 27. cxd4) 26... Ne5 {[%emt 0:07:24] Threatens to win with ...f5.} ({Worse is} 26... Qd7 27. Ne2 $17) 27. Rg3 {[%emt 0:11:21]} f6 {[%emt 0:03:10]} 28. Ne2 {[%emt 0:16:01] [#]} Nd3+ $1 {[%emt 0:04:10]} 29. Rxd3 {[%emt 0:00:15]} Rxd3 {[%emt 0:00:03]} 30. Nd4 {[%emt 0:00:12]} Qe5 {[%emt 0:01:05]} 31. Qxe5 {[%emt 0:03:43]} fxe5 {[%emt 0:00:08][%mdl 4096] Endgame KRR-KRN} 32. Ne6 {[%emt 0:00:20]} Rc8 {[%emt 0:00:08]} 33. f4 {[%emt 0:02:14]} exf4 {[%emt 0:04:20]} 34. Nxf4 {[%emt 0:02:00]} Re3+ {[%emt 0:04:27]} 35. Kf2 {[%emt 0:00:10]} Rxe4 {[%emt 0:00:08]} 36. Nd5 {[%emt 0:00:10]} (36. Kf3 $142 Rc4 37. Re1) 36... Kg7 {[%emt 0:04:35]} 37. Nf6 {[%emt 0:01:36]} Rf8 {[%emt 0:02:57]} 38. Kg3 {[%emt 0:01:10]} (38. b3 $142) 38... Re2 {[%emt 0:00:44]} 39. Rxa6 {[%emt 0:00:19]} Rxb2 {[%emt 0:01:32]} 40. Ra7 {[%emt 0:00:13]} Rf7 {[%emt 0:02:54]} 41. Ra8 {[%emt 0:00:09][%csl Gf6][%cal Ra8g8]} Rf8 {[%emt 0:03:04] Prevents Rg8+.} 42. Ra7 {[%emt 0:00:03]} Rf7 {[%emt 0:02:17]} 43. Ra8 $1 {[%emt 0:00:08][%csl Gf6][%cal Ra8g8] [#]} Re7 $1 {[%emt 0:00:51]} 44. Kf3 {[%emt 0:04:26] Against Re3+} (44. Rd8 {might work better.}) 44... Rd2 {[%emt 0:01:01] Black is clearly winning.} 45. Rg8+ {[%emt 0:01:56]} Kf7 {[%emt 0:00:07]} 46. Rh8 {[%emt 0:00:09]} Ke6 {[%emt 0:03:12]} 47. Ke4 {[%emt 0:04:04]} (47. Rf8 $142) 47... Rh2 {[%emt 0:00:54]} 48. Rf8 {[%emt 0:00:39]} Rxh4+ {[%emt 0:00:17]} 49. Kd3 {[%emt 0:00:26]} Rf7 {[%emt 0:01:02]} 50. Re8+ {[%emt 0:00:24]} Kf5 {[%emt 0:00:22]} 51. Ne4 {[%emt 0:01:37]} Rd7+ {[%emt 0:01:21]} 52. Ke3 {[%emt 0:00:11] [#]} Rxe4+ $1 {[%emt 0:00:28] Weighted Error Value: White=0.43/Black=0.34} 0-1

[Event "Asian Amateur-ch Open 2022"]
[Site "Muscat"]
[Date "2022.10.02"]
[Round "4.3"]
[White "Madhusoodanan, K.R."]
[Black "Thapa, Krishna"]
[Result "1/2-1/2"]
[ECO "A05"]
[WhiteElo "1663"]
[BlackElo "1928"]
[Annotator "TA"]
[PlyCount "84"]
[EventDate "2022.09.29"]
[EventType "swiss"]
[SourceTitle "playchess.com"]
[Source "ChessBase"]
[SourceQuality "1"]
[TimeControl "5400+30"]

{[%evp 12,84,0,6,10,-16,-9,-22,0,-21,-22,-26,-29,-21,-21,-17,-13,-22,-10,-31,0,-26,-12,-33,-14,-12,-5,-43,75,87,92,66,95,95,158,138,135,130,144,135,121,140,176,141,142,103,178,174,182,172,185,172,194,182,182,177,179,169,169,177,178,166,183,162,160,162,215,145,193,135,143,142,144,147,191]} 1. Nf3 {[%emt 0:03:03]} Nf6 {[%emt 0:00:43]} 2. b3 {[%emt 0:01:47]} g6 {[%emt 0:02:04]} 3. Bb2 {[%emt 0:00:21]} Bg7 {[%emt 0:00:12]} 4. g3 {[%emt 0:04:40]} O-O {[%emt 0:02:56]} 5. Bg2 {[%emt 0:01:03]} d6 {[%emt 0:02:43]} 6. O-O {[%emt 0:00:34]} e5 {[%emt 0:01:35]} 7. d3 {[%emt 0:00:33]} c5 {[%emt 0:02:57] A05: Réti Opening: 1 Nf3 Nf6.} 8. Nbd2 {[%emt 0:02:27]} Nc6 {[%emt 0:00:17]} 9. e4 {[%emt 0:04:30]} Bg4 {[%emt 0:04:37] The position is equal.} 10. h3 {[%emt 0:00:10]} Be6 {[%emt 0:01:18] [#]} 11. Ng5 $146 {[%emt 0:02:41]} ({Predecessor:} 11. Rb1 Qc8 12. Ng5 Bd7 13. Nc4 Ne8 14. Kh2 b5 15. Ne3 h6 16. Nf3 Rb8 17. Nd5 {0-1 (63) Gonzalez Moreno,J (1702)-Lastras Hernandez,T (1881) Tenerife 2010}) 11... Bd7 {[%emt 0:00:55]} 12. Nc4 $1 {[%emt 0:01:07]} h6 {[%emt 0:02:29]} 13. Nf3 {[%emt 0:00:38]} Be6 {[%emt 0:05:09]} 14. Ne3 {[%emt 0:03:20]} Qd7 {[%emt 0:00:33]} 15. Kh2 {[%emt 0:00:13]} Rad8 {[%emt 0:01:40]} 16. Qe1 {[%emt 0:04:18]} Nd4 {[%emt 0:03:03]} 17. Nd2 {[%emt 0:04:32]} b5 {[%emt 0:03:35]} 18. c3 {[%emt 0:02:51]} Nc6 {[%emt 0:00:11]} 19. f4 {[%emt 0:01:24][%cal Bf2f4,Bf4f5][%mdl 32]} Qe8 {[%emt 0:13:31]} (19... exf4 $15 {stays ahead.} 20. gxf4 d5) 20. f5 $16 {[%emt 0:03:45]} Bc8 {[%emt 0:00:40]} 21. g4 {[%emt 0:00:25]} g5 {[%emt 0:11:46]} 22. h4 {[%emt 0:04:16]} Nh7 {[%emt 0:03:41]} (22... b4 $142) 23. Nd5 {[%emt 0:02:40][%cal Be3d5,Bd5c7,Bc7b5][%mdl 32]} f6 {[%emt 0:00:22]} 24. Nc7 {[%emt 0:01:40]} Qf7 {[%emt 0:02:23]} 25. Nxb5 {[%emt 0:00:47]} Ba6 {[%emt 0:01:41]} 26. a4 {[%emt 0:00:07]} Qb7 {[%emt 0:03:30]} 27. c4 {[%emt 0:02:43]} Nb4 {[%emt 0:03:09]} 28. Qb1 {[%emt 0:01:31]} Qf7 {[%emt 0:01:12]} (28... h5 $16) 29. h5 $18 {[%emt 0:00:09] White is clearly better.} Rfe8 {[%emt 0:01:56]} 30. Rc1 {[%emt 0:07:31]} Nf8 {[%emt 0:00:43]} 31. Nf1 {[%emt 0:00:30][%cal Bd2f1,Bf1e3,Be3d5][%mdl 32]} Bc8 {[%emt 0:04:02]} 32. Ne3 {[%emt 0:00:33]} a6 {[%emt 0:00:15]} 33. Nc3 {[%emt 0:00:07]} Bb7 {[%emt 0:00:24]} 34. Ba3 {[%emt 0:01:23]} Nc6 {[%emt 0:01:40]} 35. Ned5 {[%emt 0:02:51]} Rb8 {[%emt 0:03:30]} 36. Qa2 {[%emt 0:00:09]} Ba8 {[%emt 0:01:03]} 37. Rab1 {[%emt 0:00:26]} a5 {[%emt 0:02:16]} 38. Nb5 {[%emt 0:00:50]} Qd7 {[%emt 0:01:24]} (38... Red8 $142 39. Qe2 Nb4) 39. Qd2 {[%emt 0:00:52]} Rec8 {[%emt 0:01:42]} 40. Bb2 {[%emt 0:00:32]} ({Better is} 40. Qe3 $18) 40... Kf7 {[%emt 0:01:19]} 41. Bc3 {[%emt 0:02:21]} Qd8 {[%emt 0:00:23]} 42. Qe1 {[%emt 0:01:27] White has more active pieces.} Nh7 {[%emt 0:00:22] Weighted Error Value: White=0.12 (very precise) /Black=0.18 (very precise)} 1/2-1/2

[Event "Asian Amateur-ch Open 2022"]
[Site "Muscat"]
[Date "2022.10.02"]
[Round "4.4"]
[White "Fooladi, Behrooz"]
[Black "Srivatsan Karthikeyan"]
[Result "1-0"]
[ECO "E11"]
[WhiteElo "1928"]
[BlackElo "1711"]
[Annotator "TA"]
[PlyCount "99"]
[EventDate "2022.09.29"]
[EventType "swiss"]
[SourceTitle "playchess.com"]
[Source "ChessBase"]
[SourceQuality "1"]
[TimeControl "5400+30"]

{[%evp 12,98,16,0,20,25,37,67,37,21,17,8,24,18,11,0,14,0,17,4,32,36,43,40,26,17,17,8,14,10,47,22,28,20,37,28,65,45,47,0,0,0,6,7,5,-5,22,12,183,195,184,198,167,191,204,122,201,164,164,182,616,594,813,811,819,818,1799,1746,5501,4550,29982,29984,29984,29985,29983,29984,29988,29989,29989,29990,29990,29983,29995,29996,29996,29997,29998,29999,29999]} 1. d4 {[%emt 0:00:07]} Nf6 {[%emt 0:00:08]} 2. Nf3 {[%emt 0:00:10]} e6 {[%emt 0:00:04]} 3. c4 {[%emt 0:00:07]} d5 {[%emt 0:00:07]} 4. g3 {[%emt 0:00:15]} Bb4+ {[%emt 0:02:11]} 5. Bd2 {[%emt 0:00:21]} a5 {[%emt 0:00:05]} 6. Bg2 {[%emt 0:00:14]} O-O {[%emt 0:02:30]} 7. O-O {[%emt 0:00:11] 7.Qc2 is the modern continuation.} Nbd7 {[%emt 0:05:41] E11: Bogo-Indian.} 8. Qc2 {[%emt 0:00:39]} b6 {[%emt 0:02:25]} 9. cxd5 {[%emt 0:02:52]} exd5 {[%emt 0:00:11] White is slightly better.} 10. Nc3 {[%emt 0:00:08] [#]} Re8 $146 {[%emt 0:03:45]} ({Predecessor:} 10... Bb7 11. Ne5 Re8 12. f4 Bxc3 13. Bxc3 Ne4 14. Rad1 f6 15. Bxe4 Nf8 16. Bg2 fxe5 17. dxe5 {1-0 (41) Lei,T (2505)-Hou,Y (2658) Chess.com INT 2021}) 11. Bf4 {[%emt 0:03:38] Black should prevent Nb5.} c6 {[%emt 0:12:03] Inhibits Nb5.} 12. Rfd1 {[%emt 0:07:45]} Bb7 {[%emt 0:07:53]} 13. Rac1 {[%emt 0:03:21]} Nf8 {[%emt 0:02:20]} 14. a3 {[%emt 0:02:25]} (14. e3 {with more complications.} Ne6 15. Ng5 Nxf4 16. exf4 b5 17. a4) 14... Bxc3 {[%emt 0:02:06]} 15. bxc3 {[%emt 0:00:14]} Ng6 {[%emt 0:00:37]} (15... Ne6 {feels hotter.} 16. Ne5 b5 17. a4 Nd7) 16. Bg5 {[%emt 0:05:51]} h6 {[%emt 0:03:58]} 17. Bxf6 {[%emt 0:00:15]} Qxf6 {[%emt 0:00:06]} 18. Rb1 {[%emt 0:00:36]} b5 {[%emt 0:02:59]} 19. Re1 {[%emt 0:04:03]} Bc8 {[%emt 0:03:17] And now ...Bf5 would win.} 20. Nd2 {[%emt 0:00:57]} Qd6 {[%emt 0:10:22]} (20... Bf5 $5 {[%cal Rf5c2]} 21. e4 dxe4 22. Nxe4 Qe7 $11) 21. e4 {[%emt 0:01:02]} Be6 {[%emt 0:00:27]} 22. a4 {[%emt 0:11:34]} Reb8 {[%emt 0:04:08]} 23. f4 {[%emt 0:05:07] [#] aiming for f5.} dxe4 {[%emt 0:05:02]} 24. Nxe4 {[%emt 0:00:45]} ({Don't play} 24. Qxe4 Bd5 25. Qc2 Bxg2 26. Kxg2 bxa4 $15) 24... Qd8 {[%emt 0:01:59]} 25. Bf1 {[%emt 0:18:47][%cal Ra4b5]} b4 {[%emt 0:01:27]} 26. Nc5 {[%emt 0:00:41]} Nf8 {[%emt 0:03:48]} 27. f5 $36 {[%emt 0:01:22][%mdl 2048] White is pushing.} Bc8 {[%emt 0:02:22]} 28. Bg2 {[%emt 0:00:48]} Qf6 {[%emt 0:02:51]} 29. g4 {[%emt 0:01:06]} Nd7 $2 {[%emt 0:01:29] Black is on the road to losing.} (29... h5 $11 {and Black stays safe.}) 30. Re8+ $18 {[%emt 0:00:32]} Nf8 {[%emt 0:01:53]} 31. Qf2 {[%emt 0:03:50] Threatens to win with Ne4.} Qd6 {[%emt 0:02:39]} 32. cxb4 {[%emt 0:05:02] b5 is the strong threat.} axb4 {[%emt 0:01:28] [#]} 33. Qd2 {[%emt 0:00:08]} ({Better is} 33. Qe3 $1 $18 {[%cal Re3e7]}) 33... b3 {[%emt 0:04:13]} (33... h5 $16 {is a better defense.}) 34. Rxb3 {[%emt 0:00:55]} Rxb3 {[%emt 0:01:04]} 35. Nxb3 {[%emt 0:00:07] Strongly threatening Qe3.} Qd7 $2 {[%emt 0:00:55]} (35... Bb7 36. Rxa8 Bxa8) 36. Qe3 {[%emt 0:05:13]} Bb7 {[%emt 0:09:57]} 37. Re7 {[%emt 0:01:53]} Qc8 {[%emt 0:00:00]} 38. Nc5 {[%emt 0:00:18] Black must now prevent Qb3.} Ba6 {[%emt 0:00:00]} 39. Qb3 {[%emt 0:00:30]} Ne6 {[%emt 0:00:00]} 40. fxe6 {[%emt 0:00:19]} f6 {[%emt 0:00:00]} 41. Nxa6 {[%emt 0:03:36] White mates.} Qxa6 {[%emt 0:00:00]} 42. Qb7 {[%emt 0:00:28]} Qxb7 {[%emt 0:00:00]} 43. Rxb7 {[%emt 0:00:11]} Rxa4 {[%emt 0:00:00] KRB-KR} 44. Rb8+ {[%emt 0:00:11]} Kh7 {[%emt 0:00:00]} 45. e7 {[%emt 0:00:22]} Ra1+ {[%emt 0:00:00]} 46. Bf1 {[%emt 0:00:17]} c5 {[%emt 0:00:00]} 47. e8=Q {[%emt 0:00:17]} Rxf1+ {[%emt 0:00:00]} 48. Kxf1 {[%emt 0:00:04]} f5 {[%emt 0:00:00]} 49. gxf5 {[%emt 0:00:17][%csl Gb8][%cal Re8g8]} cxd4 {[%emt 0:00:00]} 50. Qg6# {[%emt 0:00:05] Weighted Error Value: White=0.07 (flawless) /Black=0.49} 1-0

[Event "Asian Amateur-ch Open 2022"]
[Site "Muscat"]
[Date "2022.10.02"]
[Round "4.5"]
[White "Al Amri, Mahad"]
[Black "Zahmati, Sobhan"]
[Result "0-1"]
[ECO "B15"]
[WhiteElo "1589"]
[BlackElo "1926"]
[Annotator "TA"]
[PlyCount "78"]
[EventDate "2022.09.29"]
[EventType "swiss"]
[SourceTitle "playchess.com"]
[Source "ChessBase"]
[SourceQuality "1"]
[TimeControl "5400+30"]

{[%evp 15,78,0,15,0,8,0,14,-56,-27,-39,-17,-25,-19,-19,0,-36,-38,-34,-29,-50,-46,-155,-140,-176,-186,-176,-162,-290,-291,-282,-280,-283,-278,-310,-312,-306,-269,-294,-236,-491,-483,-479,-471,-783,-766,-741,-469,-480,-477,-718,-712,-1012,-734,-987,-620,-2302,-2207,-2108,-2071,-29975,-29973,-1696,-1648,-2513,-1226]} 1. e4 {[%emt 0:01:11]} c6 {[%emt 0:00:01]} 2. d4 {[%emt 0:01:21]} d5 {[%emt 0:00:05]} 3. Nc3 {[%emt 0:00:23]} dxe4 {[%emt 0:00:01]} 4. Nxe4 {[%emt 0:00:18]} Nf6 {[%emt 0:00:02]} 5. Nxf6+ {[%emt 0:01:04]} exf6 {[%emt 0:00:02]} 6. Nf3 {[%emt 0:00:21]} Bd6 {[%emt 0:00:06]} 7. Bd3 {[%emt 0:00:30] The main line 7.Bd3 scores better than 7.Be2.} O-O {[%emt 0:00:15]} 8. O-O {[%emt 0:00:07]} Re8 {[%emt 0:04:45]} 9. c4 {[%emt 0:09:06] B15: Caro-Kann: 3 Nc3: 3...g6 and 3...dxe4 4 Nxe4 Nf6 5 Nxf6+ exf6.} Nd7 {[%emt 0:01:25]} 10. Qc2 {[%emt 0:00:57]} Nf8 {[%emt 0:00:36] [#]} 11. c5 $146 {[%emt 0:00:52]} (11. Be3 $11) ({Predecessor:} 11. h3 Be6 12. Bf5 Qa5 13. Bxe6 Nxe6 14. Be3 Bf4 15. Rfe1 Bxe3 16. Rxe3 Red8 17. Rd1 {1-0 (57) Shyam,N (2465)-Jubin,J (2252) Abu Dhabi 2022}) 11... Bb8 {[%emt 0:02:04]} 12. h3 {[%emt 0:00:34]} Ng6 {[%emt 0:00:42]} 13. Bd2 {[%emt 0:00:38]} Be6 {[%emt 0:07:08]} 14. Rfe1 {[%emt 0:01:17]} Qc7 {[%emt 0:02:14][%cal Og6h4] [#] And now ...Nh4! would win.} 15. g3 {[%emt 0:05:06][%cal Od4d5] Inhibits Nh4.} Qd7 {[%emt 0:05:09]} 16. h4 {[%emt 0:01:31]} Bc7 {[%emt 0:11:16]} 17. h5 {[%emt 0:00:41]} Nf8 {[%emt 0:01:02]} 18. Kg2 {[%emt 0:05:06] White is on the road to losing.} ({White should play} 18. h6 $15) 18... Bh3+ $17 {[%emt 0:06:58]} 19. Kg1 {[%emt 0:01:43]} Qg4 {[%emt 0:07:24][%csl LRf3,LRh5]} 20. Nh2 {[%emt 0:01:15]} Qxd4 $40 {[%emt 0:04:05][%mdl 128] [#] ...Bxg3 is the strong threat. White is in trouble.} 21. Be3 {[%emt 0:00:39]} (21. Bf1 $142 Bxf1 22. Nxf1) 21... Qd5 $19 {[%emt 0:00:59][%csl Gh3][%cal Rd5g2]} 22. Bf1 {[%emt 0:02:04] Against Qg2+} Bxf1 {[%emt 0:00:07]} ({Avoid the trap} 22... Qxh5 $2 23. Rad1 $19) 23. Nxf1 {[%emt 0:00:30]} Qxh5 {[%emt 0:00:02]} 24. Qb3 {[%emt 0:01:42]} Rab8 {[%emt 0:05:28]} 25. Rad1 {[%emt 0:00:56]} Ba5 {[%emt 0:00:52]} 26. Nd2 {[%emt 0:02:36]} Ng6 {[%emt 0:04:43]} 27. Qa4 $2 {[%emt 0:01:17]} (27. Kg2) 27... Bxd2 {[%emt 0:00:23]} 28. Bxd2 {[%emt 0:00:21]} Ne5 {[%emt 0:01:03]} 29. Kg2 {[%emt 0:03:23]} (29. Rxe5 $142 fxe5 30. Be3) 29... Qf3+ {[%emt 0:00:51]} 30. Kg1 {[%emt 0:00:17]} Qd5 {[%emt 0:01:03] ( -> ...Nf3+)} 31. Rxe5 {[%emt 0:01:37]} fxe5 {[%emt 0:01:11]} ({Worse is} 31... Rxe5 32. Bf4 Qxc5 33. Bxe5 fxe5 34. Rd7 $17) 32. Qg4 {[%emt 0:00:41]} (32. Be3 $142 Qf3 33. Rd6) 32... Rbd8 {[%emt 0:01:14] Threatens to win with ...Qd3.} 33. Kh2 {[%emt 0:00:14]} Qe6 {[%emt 0:00:36]} 34. Qb4 {[%emt 0:00:23]} Qxa2 {[%emt 0:00:32]} 35. Qxb7 {[%emt 0:00:30]} Qa4 {[%emt 0:00:16]} 36. b3 {[%emt 0:00:07]} Qg4 {[%emt 0:00:05]} 37. Qxc6 {[%emt 0:01:19]} Qh5+ {[%emt 0:00:07]} 38. Kg2 {[%emt 0:00:06]} Qxd1 {[%emt 0:00:03]} 39. Bg5 {[%emt 0:00:23]} Qd5+ {[%emt 0:00:02] Weighted Error Value: White=0.94/Black=0.44} 0-1

[Event "Asian Amateur-ch Open 2022"]
[Site "Muscat"]
[Date "2022.10.02"]
[Round "4.6"]
[White "Mahmoody, M. Sadegh"]
[Black "Velavaa Ragavesh"]
[Result "1-0"]
[ECO "A80"]
[WhiteElo "1914"]
[BlackElo "1698"]
[Annotator "TA"]
[PlyCount "119"]
[EventDate "2022.09.29"]
[EventType "swiss"]
[SourceTitle "playchess.com"]
[Source "ChessBase"]
[SourceQuality "1"]
[TimeControl "5400+30"]

{[%evp 9,118,-37,-4,0,0,0,-6,-66,-46,-47,-12,-12,-30,-33,6,6,13,9,18,7,7,13,9,1,6,0,16,0,7,6,17,16,17,8,10,0,0,-3,0,0,0,0,0,0,0,0,0,0,7,0,0,2,14,14,9,0,0,0,0,0,0,0,6,0,6,5,74,70,66,12,223,233,187,174,247,169,193,160,416,374,2220,2706,12835,5531,12844,12845,12845,12845,12846,12846,12847,12847,12847,12848,29992,12848,12848,12848,27999,27999,27999,27999,27998,27998,27999,27998,27999,27998,27999,27999,29999]} 1. d4 {[%emt 0:00:03]} f5 {[%emt 0:00:23]} 2. Nd2 {[%emt 0:03:29]} Nf6 {[%emt 0:01:11]} 3. g3 {[%emt 0:00:15]} d6 {[%emt 0:00:57]} 4. Bg2 {[%emt 0:00:12]} e5 {[%emt 0:00:52]} 5. c3 {[%emt 0:00:11]} c6 {[%emt 0:01:46]} 6. dxe5 {[%emt 0:03:20] A80: Dutch Defence: Unusual White second moves.} dxe5 {[%emt 0:01:09] [#]} 7. Ngf3 $146 {[%emt 0:00:06]} ({Predecessor:} 7. e4 fxe4 8. Nxe4 Qxd1+ 9. Kxd1 Bg4+ 10. Ke1 Nbd7 11. Be3 Nd5 12. Nf3 Nxe3 13. fxe3 {0-1 (47) Mikrut,D (2359)-Jakubiec,A (2521) Krakow 2012}) 7... e4 {[%emt 0:04:39]} 8. Ne5 {[%emt 0:01:45]} (8. Nd4 $1 $11) 8... Be6 {[%emt 0:02:27]} 9. Nb3 {[%emt 0:03:29][%cal Bd2b3,Bb3d4,Bd4e6,Be6g5][%mdl 32]} Qxd1+ {[%emt 0:01:47]} (9... Bd6 $5 {[%cal Rd6e5]} 10. Nd4 Bd5 $11) 10. Kxd1 {[%emt 0:00:02]} Bd6 {[%emt 0:00:18]} 11. Nd4 {[%emt 0:00:31]} Bxe5 {[%emt 0:04:11]} (11... Bd5 $5 {[%cal Rd6e5]} 12. Bf4 Bxe5 13. Bxe5 Ng4 14. Bxg7 Rg8 15. Nxf5 Be6 $15) 12. Nxe6 {[%emt 0:00:02]} Kf7 {[%emt 0:01:02]} 13. Ng5+ {[%emt 0:00:35]} Ke7 {[%emt 0:00:33]} 14. Kc2 {[%emt 0:01:22]} Nbd7 {[%emt 0:04:06]} 15. f3 {[%emt 0:07:45][%cal Rf3e4]} h6 {[%emt 0:05:34]} 16. Nh3 {[%emt 0:00:18]} exf3 {[%emt 0:00:32]} 17. exf3 {[%emt 0:00:07]} Kf7 {[%emt 0:00:22]} 18. Bd2 {[%emt 0:04:48]} (18. Re1 {keeps more tension.} Bc7 19. Bf1 g5 20. Bd2) 18... Rhe8 {[%emt 0:02:30]} 19. Rhe1 {[%emt 0:02:11]} Rad8 {[%emt 0:02:44]} 20. Nf2 {[%emt 0:02:03]} Bd6 {[%emt 0:01:31]} 21. Rad1 {[%emt 0:03:53]} Ne5 {[%emt 0:07:43]} 22. b3 {[%emt 0:10:01]} Bc5 {[%emt 0:07:05]} 23. Be3 {[%emt 0:06:16]} Bxe3 {[%emt 0:02:36]} 24. Rxd8 {[%emt 0:00:53]} Rxd8 {[%emt 0:01:05]} 25. Rxe3 {[%emt 0:00:02]} Re8 {[%emt 0:08:00]} 26. c4 {[%emt 0:03:47]} Ned7 {[%emt 0:05:34]} 27. Rxe8 {[%emt 0:00:21]} Nxe8 $11 {[%emt 0:00:21][%mdl 4096] Endgame KBN-KNN} 28. Nd3 {[%emt 0:04:30]} Kf6 {[%emt 0:01:38]} 29. Kc3 {[%emt 0:00:20]} Nc7 {[%emt 0:00:34]} 30. f4 {[%emt 0:02:13]} Ke6 {[%emt 0:05:02]} 31. b4 {[%emt 0:01:24]} Kd6 {[%emt 0:02:28]} 32. a4 {[%emt 0:02:29]} b6 {[%emt 0:05:23]} 33. Bh3 {[%emt 0:03:27]} g6 {[%emt 0:04:12]} 34. g4 {[%emt 0:00:17]} fxg4 {[%emt 0:00:04]} 35. Bxg4 {[%emt 0:00:01]} Nf6 {[%emt 0:00:01]} 36. Bf3 {[%emt 0:07:10]} Ne6 {[%emt 0:02:40] Inhibits c5+.} 37. Ne5 {[%emt 0:01:33]} Nxf4 {[%emt 0:00:19]} (37... c5 $1 $11 {remains equal.}) 38. Nxc6 $16 {[%emt 0:00:02]} a6 {[%emt 0:02:08]} 39. Nb8 {[%emt 0:00:44]} (39. a5 $14 bxa5 40. Nxa5) 39... g5 $2 {[%emt 0:00:56] Loses the game.} (39... a5 $11) 40. Nxa6 $18 {[%emt 0:00:29] aiming for c5+.} g4 {[%emt 0:00:02]} 41. Bh1 {[%emt 0:06:47] Black must now prevent a5.} h5 {[%emt 0:03:36]} (41... Ne2+ $142 42. Kd2 Nd4 43. c5+ bxc5) 42. a5 {[%emt 0:01:07]} bxa5 {[%emt 0:02:57]} 43. c5+ {[%emt 0:00:12]} Kd7 $2 {[%emt 0:00:19]} (43... Ke5 $16) 44. b5 $1 {[%emt 0:00:55][%cal Bb4b5,Bb5b6][%mdl 32]} Kc8 $2 {[%emt 0:01:05]} (44... N6d5+ 45. Kd4 Nc7 46. Nxc7 Kxc7 47. b6+ Kc8) 45. b6 {[%emt 0:01:45] White threatens b7+ and mate.} N4d5+ {[%emt 0:03:41]} 46. Kd4 {[%emt 0:01:41]} h4 {[%emt 0:01:53]} 47. Bxd5 {[%emt 0:02:32]} Nxd5 {[%emt 0:00:04]} 48. Kxd5 {[%emt 0:00:06] Threatening mate with c6. KN-K3P} Kb7 {[%emt 0:00:01] [#]} 49. c6+ $1 {[%emt 0:00:45]} ({Inferior is} 49. Nc7 g3 50. hxg3 hxg3 51. c6+ Kxb6 52. Na8+ Ka7 $11) 49... Kxb6 {[%emt 0:01:06] [#]} 50. c7 $1 {[%emt 0:00:44]} Kb7 {[%emt 0:00:07] [#]} 51. Kd6 $1 {[%emt 0:00:06] Intending Nc5+ and mate.} Kc8 {[%emt 0:00:13]} (51... g3 52. Kd7) 52. Nc5 {[%emt 0:00:44]} (52. Nb8 $142 g3 53. Nc6 g2 54. Ne7+ Kb7 55. c8=Q+ Kb6 56. Nd5+ Ka7 57. Qc7+ Ka8 58. Nb6#) 52... g3 {[%emt 0:00:15]} 53. hxg3 {[%emt 0:00:10]} hxg3 {[%emt 0:00:26] KN-KPP} 54. Nd7 {[%emt 0:00:09] White mates.} Kb7 {[%emt 0:00:23]} 55. Nb6 {[%emt 0:00:10]} Kxb6 {[%emt 0:00:10]} 56. c8=Q {[%emt 0:00:02]} Kb5 {[%emt 0:00:01]} 57. Qc3 {[%emt 0:01:14]} g2 {[%emt 0:00:22]} 58. Qb3+ {[%emt 0:00:09]} Ka6 {[%emt 0:00:07]} 59. Kc6 {[%emt 0:00:10]} g1=Q {[%emt 0:00:07]} 60. Qb7# {[%emt 0:00:04] Weighted Error Value: White=0.07 (flawless) /Black=0.56} 1-0